fUSD/lending_fUSD_20260201
["ID","MTS","AMOUNT","RATE_DAILY","PERIOD"]
[404228545,1769978672853,-485.44,0.00043699,30]
[404228546,1769978672915,-485.44,0.00043699,30]
[404228547,1769978672979,-485.44,0.00043699,30]
[404228548,1769978673044,-485.44,0.00043699,30]
[404228549,1769978673108,-485.44,0.00043699,30]
[404228550,1769978673172,-485.44,0.00043699,30]
[404228551,1769978673238,-485.44,0.00043699,30]
[404228552,1769978673300,-485.44,0.00043699,30]
[404228553,1769978673363,-485.44,0.00043699,30]
[404228554,1769978673429,-485.44,0.00043699,30]
[404228555,1769978673492,-485.44,0.00043699,30]
[404228556,1769978673554,-485.44,0.00043699,30]
[404228557,1769978673616,-485.44,0.00043699,30]
[404228558,1769978673686,-485.44,0.00043699,30]
[404228559,1769978673750,-970.88,0.00043699,30]
[404228560,1769978673814,-1233.61,0.00043699,30]
[404228561,1769978673880,-1233.61,0.00043699,30]
[404228562,1769978673946,-532.78,0.00043699,30]
[404228563,1769978674015,-50000.0,0.00043699,60]
[404228564,1769978674082,-50000.0,0.00043699,61]
[404228565,1769978674151,-50000.0,0.00043699,62]
[404228566,1769978674217,-50000.0,0.00043699,63]
[404228567,1769978674281,-151.0,0.00043699,120]
[404228568,1769978674346,-151.0,0.00043699,120]
[404228569,1769978674409,-151.0,0.00043699,120]
[404228570,1769978674474,-151.0,0.00043699,120]
[404228571,1769978674538,-210.262648,0.00043699,120]
[404228572,1769978674602,-151.0,0.00043699,120]
[404228573,1769978674665,-151.0,0.00043699,120]
[404228574,1769978674727,-151.0,0.00043699,120]
[404228575,1769978674790,-151.0,0.00043699,120]
[404228576,1769978674852,-265.992904,0.00043699,120]
[404228577,1769978674918,-151.0,0.00043699,90]
[404228578,1769978674982,-151.0,0.00043699,90]
[404228579,1769978675048,-151.0,0.00043699,90]
[404228580,1769978675113,-151.0,0.00043699,90]
[404228581,1769978675316,-151.0,0.00043699,120]
[404228582,1769978675385,-268.782197,0.00043699,120]
[404228583,1769978675450,-151.0,0.00043699,120]
[404228584,1769978675518,-151.0,0.00043699,120]
[404228585,1769978675588,-151.0,0.00043699,120]
[404228586,1769978675654,-151.0,0.00043699,120]
[404228587,1769978675720,-190.441816,0.00043699,120]
[404228588,1769978675786,-190.441816,0.00043699,120]
[404228589,1769978675850,-190.441816,0.00043699,120]
[404228590,1769978675917,-190.441816,0.00043699,120]
[404228591,1769978675984,-190.441816,0.00043699,120]
[404228592,1769978676049,-190.441816,0.00043699,120]
[404228593,1769978676114,-190.441816,0.00043699,120]
[404228594,1769978676183,-190.441816,0.00043699,120]
[404228595,1769978676262,-431.856374,0.000437,42]
[404228596,1769978676325,-211.3281782,0.000438,120]
[404228597,1769978676391,-800.0,0.00043836,32]
[404228598,1769978676453,-800.0,0.00043836,32]
[404228599,1769978676511,-151.0,0.00044,120]
[404228600,1769978676574,-152.0,0.000442,120]
[404228601,1769978676638,-159.10100148,0.0004425,120]
[404228602,1769978676706,-150.0,0.00044269,120]
[404228603,1769978676770,-150.0,0.00044529,120]
[404228604,1769978676832,-151.0,0.000448,120]
[404228605,1769978676898,-200.0,0.00044827,120]
[404228606,1769978676964,-486.69134265,0.0004489,120]
[404228607,1769978677038,-152.0,0.000449,120]
[404228608,1769978677113,-210.0,0.0004496,30]
[404228609,1769978677181,-262.70756518,0.00045,120]
[404228610,1769978677245,-290.81972834,0.00045,30]
[404228611,1769978677316,-183.13839267,0.00045,60]
[404228612,1769978677394,-273.67881347,0.00045,120]
[404228613,1769978677462,-270.16795352,0.00045,120]
[404228614,1769978677529,-283.05026445,0.00045,120]
[404228615,1769978677599,-1191.26,0.00045,120]
[404228616,1769978677664,-433.13898103,0.000451,120]
[404228617,1769978677730,-150.0,0.00045231,120]
[404228618,1769978677798,-150.0,0.00045238,120]
[404228619,1769978677861,-151.0,0.000456,120]
[404228620,1769978677928,-152.0,0.000456,120]
[404228621,1769978677995,-298.60543402,0.000457,120]
[404228622,1769978678062,-175.46,0.000458,60]
[404228623,1769978678130,-288.7,0.00045885,120]
[404228624,1769978678196,-200.0,0.00045987,120]
[404228625,1769978678260,-500.0,0.00046,120]
[404228626,1769978678323,-500.0,0.00046,120]
[404228627,1769978678386,-500.0,0.00046,120]
[404228628,1769978678448,-342.58502638,0.00046,120]
[404228629,1769978678510,-205.13709622,0.00046,30]
[404228630,1769978678572,-186.57871684,0.00046,120]
[404228631,1769978678634,-150.0,0.00046065,120]
[404228632,1769978678699,-152.0,0.000463,120]
[404228633,1769978678763,-151.0,0.000464,120]
[404228634,1769978678823,-186.06296933,0.0004649,120]
[404228635,1769978678895,-307.72,0.00046737,120]
[404228636,1769978678962,-150.0,0.00046873,120]
[404228637,1769978679028,-197.412382,0.00046887,30]
[404228638,1769978679093,-210.0,0.0004698,30]
[404228639,1769978679156,-212.32675339,0.00046997,30]
[404228640,1769978679220,-759.4,0.00047,30]
[404228641,1769978679283,-152.0,0.00047,120]
[404228642,1769978679345,-200.0,0.00047148,120]
[404228643,1769978679407,-151.0,0.000472,120]
[404228644,1769978679469,-353.36005996,0.000474,120]
[404228645,1769978679532,-500.0,0.00047402,120]
[404228646,1769978679597,-500.0,0.00047402,120]
[404228647,1769978679658,-500.0,0.00047402,120]
[404228648,1769978679722,-180.14798585,0.000477,120]
[404228649,1769978679786,-209.39631984,0.000477,120]
[404228650,1769978679849,-203.94592894,0.000477,120]
[404228651,1769978679913,-201.25033977,0.000477,120]
[404228652,1769978679978,-160.15741889,0.000477,120]
[404228653,1769978680041,-176.91260221,0.000477,120]
[404228654,1769978680104,-173.47576183,0.000477,120]
[404228655,1769978680168,-193.91078058,0.000477,120]
[404228656,1769978680229,-249.40987671,0.000477,120]
[404228657,1769978680290,-233.13982997,0.000477,120]
[404228658,1769978680358,-152.0,0.000477,120]
[404228659,1769978680424,-201.19772747,0.000477,120]
[404228660,1769978680487,-151.0,0.00048,120]
[404228661,1769978680552,-246.60808112,0.00048,120]
[404228662,1769978680619,-150.0,0.00048051,120]
[404228663,1769978680686,-950.6,0.00048238,120]
[404228664,1769978680752,-200.0,0.00048309,120]
[404228665,1769978680819,-152.0,0.000484,120]
[404228666,1769978680885,-150.0,0.00048542,120]
[404228667,1769978680953,-150.0,0.00048542,120]
[404228668,1769978681019,-457.30683933,0.00048712,30]
[404228669,1769978681083,-150.0,0.00048762,120]
[404228670,1769978681149,-500.0,0.00048767,120]
[404228671,1769978681214,-500.0,0.00048767,120]
[404228672,1769978681276,-500.0,0.00048767,120]
[404228673,1769978681337,-500.0,0.00048767,120]
[404228674,1769978681401,-500.0,0.00048767,120]
[404228675,1769978681468,-500.0,0.00048767,120]
[404228676,1769978681693,-500.0,0.00048767,120]
[404228677,1769978681759,-500.0,0.00048767,120]
[404228678,1769978681824,-500.0,0.00048767,120]
[404228679,1769978681886,-271.09978646,0.00048767,120]
[404228680,1769978681948,-151.0,0.000488,120]
[404228681,1769978682011,-500.0,0.00048803,120]
[404228682,1769978682074,-500.0,0.00048803,120]
[404228683,1769978682139,-412.71618707,0.0004888,120]
[404228684,1769978682201,-153.77302076,0.000489,120]
[404228685,1769978682263,-166.85198922,0.000489,120]
[404228686,1769978682324,-457.30683933,0.00048904,30]
[404228687,1769978682384,-210.0,0.0004899,30]
[404228688,1769978682446,-302.57450147,0.00049,120]
[404228689,1769978682509,-223.12490649,0.00049,120]
[404228690,1769978682571,-167.19694039,0.00049,120]
[404228691,1769978682634,-161.05419706,0.00049,30]
[404228692,1769978682709,-278.86281334,0.00049,120]
[404228693,1769978682774,-289.70218763,0.00049,120]
[404228694,1769978682838,-299.54459398,0.00049,90]
[404228695,1769978682903,-222.60396003,0.00049,120]
[404228696,1769978682969,-457.30683933,0.00049096,30]
[404228697,1769978683033,-201.25033977,0.000491,120]
[404228698,1769978683098,-176.91260221,0.000491,120]
[404228699,1769978683170,-173.47576183,0.000491,120]
[404228700,1769978683237,-193.91078058,0.000491,120]
[404228701,1769978683302,-249.40987671,0.000491,120]
[404228702,1769978683368,-233.13982997,0.000491,120]
[404228703,1769978683445,-152.0,0.000491,120]
[404228704,1769978683509,-201.19772747,0.000491,120]
[404228705,1769978683572,-217.2624496,0.00049142,120]
[404228706,1769978683633,-800.0,0.00049315,34]
[404228707,1769978683695,-800.0,0.00049315,34]
[404228708,1769978683757,-457.30683933,0.00049315,30]
[404228709,1769978683819,-269.58504707,0.00049351,120]
[404228710,1769978683883,-203.442396,0.00049469,120]
[404228711,1769978683946,-500.0,0.00049495,60]
[404228712,1769978684010,-500.0,0.00049495,60]
[404228713,1769978684075,-500.0,0.00049495,60]
[404228714,1769978684140,-503.0,0.000495,31]
[404228715,1769978684204,-457.30683933,0.00049507,30]
[404228716,1769978684265,-457.30683933,0.00049699,30]
[404228717,1769978684323,-151.0,0.000497,120]
[404228718,1769978684384,-500.0,0.00049769,60]
[404228719,1769978684447,-500.0,0.00049769,60]
[404228720,1769978684512,-152.0,0.000498,120]
[404228721,1769978684575,-457.30683933,0.0004989,30]
[404228722,1769978684637,-309.68958607,0.000499,30]
[404228723,1769978684701,-477.19752415,0.0005,120]
[404228724,1769978684765,-200.0,0.0005,120]
[404228725,1769978684830,-987.17,0.0005,120]
[404228726,1769978684894,-489.24832477,0.0005,120]
[404228727,1769978684959,-173.02013131,0.0005,120]
[404228728,1769978685026,-174.18487605,0.0005,120]
[404228729,1769978685091,-156.68834826,0.0005,120]
[404228730,1769978685158,-425.53837022,0.0005,120]
[404228731,1769978685220,-217.18762659,0.0005,120]
[404228732,1769978685283,-224.25765224,0.0005,120]
[404228733,1769978685345,-200.0,0.0005,120]
[404228734,1769978685408,-225.89574616,0.0005,120]
[404228735,1769978685473,-500.0,0.0005,30]
[404228736,1769978685538,-233.15903029,0.0005,120]
[404228737,1769978685603,-200.0,0.0005,120]
[404228738,1769978685666,-404.45015622,0.0005,120]
[404228739,1769978685730,-160.62108926,0.0005,120]
[404228740,1769978685793,-457.29474664,0.0005,120]
[404228741,1769978685855,-1191.26,0.0005,120]
[404228742,1769978685919,-500.0,0.00050043,60]
[404228743,1769978685983,-500.0,0.00050043,60]
[404228744,1769978686050,-457.30683933,0.00050082,30]
[404228745,1769978686116,-506.2262181,0.00050205,120]
[404228746,1769978686180,-457.30683933,0.00050274,30]
[404228747,1769978686244,-500.0,0.00050317,60]
[404228748,1769978686309,-500.0,0.00050317,60]
[404228749,1769978686376,-457.30683933,0.00050466,30]
[404228750,1769978686441,-151.0,0.000505,120]
[404228751,1769978686507,-152.0,0.000505,120]
[404228752,1769978686572,-503.0,0.00050589,32]
[404228753,1769978686637,-500.0,0.00050591,60]
[404228754,1769978686703,-500.0,0.00050591,60]
[404228755,1769978686768,-173.47576183,0.000506,120]
[404228756,1769978686833,-193.91078058,0.000506,120]
[404228757,1769978686896,-249.40987671,0.000506,120]
[404228758,1769978686961,-201.19772747,0.000506,120]
[404228759,1769978687028,-150.0,0.00050623,120]
[404228760,1769978687094,-457.30683933,0.00050685,30]
[404228761,1769978687158,-176.26232049,0.00050767,30]
[404228762,1769978687222,-321.3768656,0.000508,30]
[404228763,1769978687286,-500.0,0.00050865,60]
[404228764,1769978687348,-999.05,0.00050865,60]
[404228765,1769978687413,-457.30683933,0.00050877,30]
[404228766,1769978687476,-220.84870176,0.00051,120]
[404228767,1769978687541,-406.12641847,0.0005109,120]
[404228768,1769978687606,-826.0,0.00051096,60]
[404228769,1769978687670,-500.0,0.00051139,60]
[404228770,1769978687893,-152.0,0.000512,120]
[404228771,1769978687961,-178.2449217,0.000512,120]
[404228772,1769978688028,-299.67284756,0.00051234,120]
[404228773,1769978688091,-151.0,0.000513,120]
[404228774,1769978688156,-500.0,0.00051413,60]
[404228775,1769978688223,-307.72,0.00051571,120]
[404228776,1769978688288,-503.0,0.00051679,33]
[404228777,1769978688355,-500.0,0.00051687,60]
[404228778,1769978688422,-152.0,0.000519,120]
[404228779,1769978688485,-450.000099,0.00051954,90]
[404228780,1769978688550,-500.0,0.00051961,60]
[404228781,1769978688617,-328.19191598,0.00052,120]
[404228782,1769978688685,-822.22679213,0.00052,120]
[404228783,1769978688753,-462.99709392,0.00052,120]
[404228784,1769978688820,-258.52645134,0.00052,120]
[404228785,1769978688887,-460.89077404,0.00052054,120]
[404228786,1769978688956,-193.91078058,0.000521,120]
[404228787,1769978689023,-249.40987671,0.000521,120]
[404228788,1769978689091,-151.0,0.000521,120]
[404228789,1769978689159,-201.19772747,0.000521,120]
[404228790,1769978689225,-2833.0,0.0005212,31]
[404228791,1769978689288,-500.0,0.00052235,90]
[404228792,1769978689351,-2263.0,0.0005228,31]
[404228793,1769978689419,-152.0,0.000526,120]
[404228794,1769978689482,-204.24338911,0.00052629,76]
[404228795,1769978689547,-151.0,0.00052629,76]
[404228796,1769978689614,-150.0,0.00052645,120]
[404228797,1769978689677,-1103.0,0.00052725,30]
[404228798,1769978689744,-176.79335764,0.00052747,120]
[404228799,1769978689810,-503.0,0.00052768,34]
[404228800,1769978689874,-256.10782199,0.000528,120]
[404228801,1769978689942,-150.0,0.00052856,120]
[404228802,1769978690007,-151.0,0.000529,120]
[404228803,1769978690072,-250.0,0.00052985,34]
[404228804,1769978690138,-151.0,0.00052985,34]
[404228805,1769978690203,-250.0,0.00052999,30]
[404228806,1769978690267,-250.0,0.00052999,40]
[404228807,1769978690331,-151.0,0.00052999,30]
[404228808,1769978690395,-151.0,0.00052999,40]
[404228809,1769978690461,-257.64224608,0.00053,120]
[404228810,1769978690526,-339.7679005,0.00053,120]
[404228811,1769978690591,-449.64705764,0.00053,120]
[404228812,1769978690657,-250.0,0.00053275,60]
[404228813,1769978690726,-151.0,0.00053275,60]
[404228814,1769978690793,-267.46074303,0.00053275,60]
[404228815,1769978690856,-250.0,0.00053299,60]
[404228816,1769978690923,-151.0,0.00053299,60]
[404228817,1769978690989,-257.91778498,0.00053299,60]
[404228818,1769978691055,-152.0,0.000533,120]
[404228819,1769978691121,-250.0,0.00053312,34]
[404228820,1769978691189,-151.0,0.00053312,34]
[404228821,1769978691254,-248.71531821,0.00053312,34]
[404228822,1769978691319,-500.0,0.00053356,60]
[404228823,1769978691384,-500.0,0.00053356,60]
[404228824,1769978691448,-500.0,0.00053356,60]
[404228825,1769978691516,-150.0,0.000534,101]
[404228826,1769978691583,-150.0,0.000534,40]
[404228827,1769978691661,-150.0,0.000534,40]
[404228828,1769978691733,-207.87,0.000534,120]
[404228829,1769978691800,-250.0,0.00053459,30]
[404228830,1769978691866,-151.0,0.00053459,30]
[404228831,1769978691934,-239.84119403,0.00053459,30]
[404228832,1769978692001,-250.0,0.00053499,54]
[404228833,1769978692069,-355.41608117,0.00053499,54]
[404228834,1769978692135,-250.0,0.00053499,120]
[404228835,1769978692198,-151.0,0.00053499,54]
[404228836,1769978692263,-151.0,0.00053499,120]
[404228837,1769978692327,-231.28369723,0.00053499,54]
[404228838,1769978692392,-249.40987671,0.000537,120]
[404228839,1769978692454,-151.0,0.000537,120]
[404228840,1769978692520,-201.19772747,0.000537,120]
[404228841,1769978692588,-150.0,0.00053807,120]
[404228842,1769978692653,-503.0,0.00053857,35]
[404228843,1769978692716,-500.0,0.00053904,60]
[404228844,1769978692779,-250.0,0.00053999,102]
[404228845,1769978692843,-250.0,0.00053999,102]
[404228846,1769978692906,-151.0,0.00053999,102]
[404228847,1769978692971,-600.0,0.00053999,102]
[404228848,1769978693036,-293.84329418,0.00053999,102]
[404228849,1769978693104,-469.52307017,0.00054,120]
[404228850,1769978693173,-150.37,0.00054,120]
[404228851,1769978693241,-333.43,0.00054,120]
[404228852,1769978693310,-500.0,0.00054,120]
[404228853,1769978693377,-500.0,0.00054,120]
[404228854,1769978693445,-500.0,0.00054,120]
[404228855,1769978693514,-500.0,0.00054,120]
[404228856,1769978693582,-500.0,0.00054,120]
[404228857,1769978693650,-500.0,0.00054,120]
[404228858,1769978693716,-500.0,0.00054,120]
[404228859,1769978693783,-500.0,0.00054,120]
[404228860,1769978693853,-500.0,0.00054,120]
[404228861,1769978693923,-500.0,0.00054,120]
[404228862,1769978693993,-500.0,0.00054,120]
[404228863,1769978694064,-500.0,0.00054,120]
[404228864,1769978694133,-500.0,0.00054,120]
[404228865,1769978694354,-500.0,0.00054,120]
[404228866,1769978694421,-500.0,0.00054,120]
[404228867,1769978694488,-500.0,0.00054,120]
[404228868,1769978694555,-500.0,0.00054,120]
[404228869,1769978694622,-500.0,0.00054,120]
[404228870,1769978694688,-500.0,0.00054,120]
[404228871,1769978694755,-500.0,0.00054,120]
[404228872,1769978694820,-500.0,0.00054,120]
[404228873,1769978694888,-500.0,0.00054,120]
[404228874,1769978694956,-500.0,0.00054,120]
[404228875,1769978695024,-500.0,0.00054,120]
[404228876,1769978695095,-500.0,0.00054,120]
[404228877,1769978695162,-500.0,0.00054,120]
[404228878,1769978695227,-500.0,0.00054,120]
[404228879,1769978695291,-500.0,0.00054,120]
[404228880,1769978695356,-500.0,0.00054,120]
[404228881,1769978695424,-500.0,0.00054,120]
[404228882,1769978695490,-500.0,0.00054,120]
[404228883,1769978695558,-500.0,0.00054,120]
[404228884,1769978695624,-500.0,0.00054,120]
[404228885,1769978695695,-500.0,0.00054,120]
[404228886,1769978695763,-500.0,0.00054,120]
[404228887,1769978695831,-500.0,0.00054,120]
[404228888,1769978695899,-500.0,0.00054,120]
[404228889,1769978695966,-500.0,0.00054,120]
[404228890,1769978696034,-500.0,0.00054,120]
[404228891,1769978696105,-500.0,0.00054,120]
[404228892,1769978696173,-500.0,0.00054,120]
[404228893,1769978696241,-500.0,0.00054,120]
[404228894,1769978696306,-500.0,0.00054,120]
[404228895,1769978696371,-500.0,0.00054,120]
[404228896,1769978696441,-500.0,0.00054,120]
[404228897,1769978696505,-500.0,0.00054,120]
[404228898,1769978696573,-500.0,0.00054,120]
[404228899,1769978696641,-500.0,0.00054,120]
[404228900,1769978696707,-500.0,0.00054,120]
[404228901,1769978696775,-500.0,0.00054,120]
[404228902,1769978696842,-500.0,0.00054,120]
[404228903,1769978696908,-500.0,0.00054,120]
[404228904,1769978696975,-500.0,0.00054,120]
[404228905,1769978697043,-500.0,0.00054,120]
[404228906,1769978697110,-500.0,0.00054,120]
[404228907,1769978697176,-500.0,0.00054,120]
[404228908,1769978697242,-500.0,0.00054,120]
[404228909,1769978697308,-500.0,0.00054,120]
[404228910,1769978697375,-500.0,0.00054,120]
[404228911,1769978697453,-500.0,0.00054,120]
[404228912,1769978697523,-500.0,0.00054,120]
[404228913,1769978697591,-500.0,0.00054,120]
[404228914,1769978697657,-500.0,0.00054,120]
[404228915,1769978697721,-500.0,0.00054,120]
[404228916,1769978697788,-500.0,0.00054,120]
[404228917,1769978697851,-500.0,0.00054,120]
[404228918,1769978697916,-500.0,0.00054,120]
[404228919,1769978697982,-500.0,0.00054,120]
[404228920,1769978698048,-500.0,0.00054,120]
[404228921,1769978698113,-500.0,0.00054,120]
[404228922,1769978698180,-500.0,0.00054,120]
[404228923,1769978698246,-500.0,0.00054,120]
[404228924,1769978698310,-500.0,0.00054,120]
[404228925,1769978698372,-500.0,0.00054,120]
[404228926,1769978698440,-500.0,0.00054,120]
[404228927,1769978698507,-500.0,0.00054,120]
[404228928,1769978698571,-500.0,0.00054,120]
[404228929,1769978698635,-500.0,0.00054,120]
[404228930,1769978698699,-500.0,0.00054,120]
[404228931,1769978698767,-500.0,0.00054,120]
[404228932,1769978698832,-500.0,0.00054,120]
[404228933,1769978698898,-500.0,0.00054,120]
[404228934,1769978698966,-500.0,0.00054,120]
[404228935,1769978699032,-500.0,0.00054,120]
[404228936,1769978699099,-500.0,0.00054,120]
[404228937,1769978699164,-500.0,0.00054,120]
[404228938,1769978699229,-500.0,0.00054,120]
[404228939,1769978699293,-500.0,0.00054,120]
[404228940,1769978699358,-500.0,0.00054,120]
[404228941,1769978699423,-500.0,0.00054,120]
[404228942,1769978699486,-500.0,0.00054,120]
[404228943,1769978699550,-152.0,0.00054,120]
[404228944,1769978699614,-255.19965775,0.00054,120]
[404228945,1769978699677,-208.35412165,0.00054,120]
[404228946,1769978699743,-500.0,0.0005439,120]
[404228947,1769978699809,-500.0,0.0005439,120]
[404228948,1769978699872,-500.0,0.0005439,120]
[404228949,1769978699936,-500.0,0.0005439,120]
[404228950,1769978700001,-500.0,0.0005439,120]
[404228951,1769978700068,-500.0,0.0005439,120]
[404228952,1769978700138,-500.0,0.0005439,120]
[404228953,1769978700209,-301.18603824,0.0005439,120]
[404228954,1769978700281,-250.0,0.00054399,40]
[404228955,1769978700347,-250.0,0.00054399,40]
[404228956,1769978700414,-500.0,0.00054399,40]
[404228957,1769978700482,-250.0,0.00054399,83]
[404228958,1769978700550,-500.0,0.00054399,40]
[404228959,1769978700616,-160.0,0.00054399,40]
[404228960,1769978700859,-250.0,0.00054399,83]
[404228961,1769978700925,-500.0,0.00054399,83]
[404228962,1769978700994,-500.0,0.00054399,83]
[404228963,1769978701062,-160.0,0.00054399,83]
[404228964,1769978701128,-250.0,0.00054399,40]
[404228965,1769978701195,-250.0,0.00054399,83]
[404228966,1769978701261,-151.0,0.00054399,40]
[404228967,1769978701323,-500.0,0.00054399,40]
[404228968,1769978701389,-151.0,0.00054399,83]
[404228969,1769978701457,-500.0,0.00054399,83]
[404228970,1769978701525,-500.0,0.00054399,40]
[404228971,1769978701593,-500.0,0.00054399,83]
[404228972,1769978701659,-151.0,0.00054399,40]
[404228973,1769978701726,-151.0,0.00054399,83]
[404228974,1769978701795,-670.58624095,0.00054399,40]
[404228975,1769978701865,-695.39793187,0.00054399,83]
[404228976,1769978701931,-223.0315306,0.00054399,40]
[404228977,1769978702000,-500.0,0.00054399,40]
[404228978,1769978702070,-250.0,0.00054399,40]
[404228979,1769978702136,-500.0,0.00054399,83]
[404228980,1769978702206,-250.0,0.00054399,83]
[404228981,1769978702273,-600.0,0.00054399,40]
[404228982,1769978702339,-600.0,0.00054399,83]
[404228983,1769978702412,-250.0,0.00054399,40]
[404228984,1769978702481,-250.0,0.00054399,83]
[404228985,1769978702549,-220.0,0.00054399,40]
[404228986,1769978702616,-500.0,0.00054399,40]
[404228987,1769978702685,-220.0,0.00054399,83]
[404228988,1769978702752,-500.0,0.00054399,83]
[404228989,1769978702819,-500.0,0.00054399,40]
[404228990,1769978702886,-399.47383434,0.00054399,83]
[404228991,1769978702960,-194.72792766,0.00054399,40]
[404228992,1769978703037,-201.93286099,0.00054399,83]
[404228993,1769978703112,-250.0,0.00054399,40]
[404228994,1769978703187,-250.0,0.00054399,83]
[404228995,1769978703257,-194.72792766,0.00054399,40]
[404228996,1769978703325,-1328.27659266,0.00054399,40]
[404228997,1769978703399,-201.93286099,0.00054399,83]
[404228998,1769978703470,-1377.42282659,0.00054399,83]
[404228999,1769978703543,-500.0,0.00054399,40]
[404229000,1769978703614,-500.0,0.00054399,83]
[404229001,1769978703682,-151.0,0.00054399,40]
[404229002,1769978703751,-151.0,0.00054399,83]
[404229003,1769978703820,-194.72792766,0.00054399,40]
[404229004,1769978703891,-201.93286099,0.00054399,83]
[404229005,1769978703966,-500.0,0.00054399,40]
[404229006,1769978704038,-500.0,0.00054399,83]
[404229007,1769978704108,-150.0,0.000544,103]
[404229008,1769978704191,-150.0,0.000544,40]
[404229009,1769978704262,-150.0,0.00054441,30]
[404229010,1769978704330,-500.0,0.00054452,60]
[404229011,1769978704400,-500.0,0.00054452,60]
[404229012,1769978704470,-500.0,0.00054452,60]
[404229013,1769978704543,-151.0,0.000545,120]
[404229014,1769978704615,-198.35591485,0.000545,120]
[404229015,1769978704686,-150.0,0.00054698,120]
[404229016,1769978704757,-500.0,0.000547,60]
[404229017,1769978704827,-500.0,0.000547,60]
[404229018,1769978704902,-152.0,0.000547,120]
[404229019,1769978704976,-198.40902271,0.00054743,120]
[404229020,1769978705048,-450.0,0.00054767,120]
[404229021,1769978705120,-154.89725075,0.0005477,30]
[404229022,1769978705190,-165.56675846,0.00054784,120]
[404229023,1769978705260,-250.0,0.00054794,36]
[404229024,1769978705329,-250.0,0.00054794,36]
[404229025,1769978705399,-500.0,0.00054794,36]
[404229026,1769978705466,-500.0,0.00054794,36]
[404229027,1769978705531,-160.0,0.00054794,36]
[404229028,1769978705602,-250.0,0.00054794,36]
[404229029,1769978705671,-151.0,0.00054794,36]
[404229030,1769978705742,-500.0,0.00054794,36]
[404229031,1769978705813,-500.0,0.00054794,36]
[404229032,1769978705884,-151.0,0.00054794,36]
[404229033,1769978705956,-646.65982734,0.00054794,36]
[404229034,1769978706026,-215.0738,0.00054794,36]
[404229035,1769978706096,-500.0,0.00054794,36]
[404229036,1769978706169,-250.0,0.00054794,36]
[404229037,1769978706239,-600.0,0.00054794,36]
[404229038,1769978706310,-250.0,0.00054794,36]
[404229039,1769978706379,-220.0,0.00054794,36]
[404229040,1769978706453,-500.0,0.00054794,36]
[404229041,1769978706521,-500.0,0.00054794,36]
[404229042,1769978706590,-187.78006525,0.00054794,36]
[404229043,1769978706659,-250.0,0.00054794,36]
[404229044,1769978706731,-187.78006525,0.00054794,36]